fUSD/lending_fUSD_20250513
["ID","MTS","AMOUNT","RATE_DAILY","PERIOD"]
[360888882,1747108232507,-176.0217414,0.00011899,2]
[360888883,1747108232517,-4205.41698527,0.000119,2]
[360888884,1747108232527,-3306.29006977,0.000119,2]
[360888885,1747108232536,-160.01125496,0.000119,2]
[360888886,1747108232546,-380.48239955,0.000119,2]
[360888887,1747108232556,-163.98170202,0.000119,2]
[360888888,1747108232566,-879.28924598,0.000119,2]
[360888889,1747108232575,-579.11666055,0.000119,2]
[360888890,1747108232585,-2202.10731885,0.00011973,2]
[360888891,1747108232595,-186.35668602,0.00011973,2]
[360888892,1747108232607,-313.64331398,0.00011973,2]
[360888893,1747108232617,-500.0,0.00011973,2]
[360888894,1747108232626,-125.80358745,0.00011973,2]
[360888915,1747108237920,172.4627744,0.000119,2]
[360888920,1747108238017,-426.13040596,0.00011973,2]
[360888921,1747108238026,-500.0,0.00011973,2]
[360888922,1747108238036,-500.0,0.00011973,2]
[360888923,1747108238046,-500.0,0.00011973,2]
[360888924,1747108238056,-500.73557429,0.00011973,2]
[360888925,1747108238066,-501.61190774,0.00011973,2]
[360888926,1747108238076,-500.0,0.00011973,2]
[360888927,1747108238085,-500.0,0.00011973,2]
[360888928,1747108238096,-51.09325051,0.00011987,2]
[360888929,1747108238257,-146.84674949,0.00011987,2]
[360888930,1747108238267,-696.75997831,0.00011987,2]
[360888931,1747108238279,-502.49802169,0.00011987,2]
[360888932,1747108238288,-7.37171014,0.0001199,2]
[360888933,1747108238304,-278.78410551,0.0001199,2]
[360888934,1747108238313,-385.43589117,0.00012,2]
[360888935,1747108238325,-1113.25646616,0.00012,2]
[360888993,1747108241242,-4.45635463,0.00012,2]
[360888996,1747108241254,-2032.2,0.00012,2]
[360889023,1747108241513,212.00319385,0.000119,2]
[360889071,1747108244250,-2882.2200001,0.00012,2]
[360889072,1747108244262,-1117.7799999,0.00012,2]
[360889073,1747108244313,-1655.74096629,0.00012,2]
[360889083,1747108246305,-24476.05440001,0.00012,2]
[360889086,1747108267315,-154.6254522,0.000119,2]
[360889087,1747108282806,-277.27688288,0.00011857,2]
[360889088,1747108287713,643.691754,0.00011797,2]
[360889089,1747108297656,-135.03212054,0.00011857,2]
[360889090,1747108297685,-78.58425885,0.000119,2]
[360889091,1747108312880,-242.27973233,0.000119,2]
[360889094,1747108328327,-252.03155947,0.00011899,2]
[360889095,1747108342659,-47.96844053,0.00011899,2]
[360889096,1747108342686,-186.2528175,0.000119,2]
[360889097,1747108350175,864.7519,0.000118,2]
[360889098,1747108358206,-178.14615971,0.00011899,2]
[360889099,1747108358231,-263.79536871,0.000119,2]
[360889100,1747108373861,-232.73427422,0.000119,2]
[360889101,1747108387728,-193.83418189,0.00011899,2]
[360889102,1747108402661,-106.16581811,0.00011899,2]
[360889103,1747108402685,-244.2573788,0.000119,2]
[360889106,1747108417750,-160.79014405,0.000119,2]
[360889107,1747108432679,-195.8507542,0.000119,2]
[360889108,1747108448372,-150.0,0.00011899,2]
[360889109,1747108448406,-25.35298266,0.000119,2]
[360889110,1747108465611,-155.2473963,0.000119,2]
[360889111,1747108478152,-193.88982555,0.000119,2]
[360889112,1747108490995,611.2794882,0.000118,2]
[360889113,1747108492618,-155.2473963,0.00011858,2]
[360889114,1747108508246,-190.30365718,0.00011858,2]
[360889115,1747108513656,247.53,0.00010208,2]
[360889116,1747108523303,-170.43486632,0.00011858,2]
[360889117,1747108538429,-170.7393119,0.00011858,2]
[360889118,1747108552662,-388.2747683,0.00011858,2]
[360889119,1747108552689,-51.9652317,0.00011899,2]
[360889120,1747108553740,341.174178,0.00011798,2]
[360889121,1747108567626,-298.7806881,0.00011899,2]
[360889122,1747108583217,-218.08516758,0.00011899,2]
[360889123,1747108631893,286.94012136,0.00011838,2]
[360889124,1747108631917,499.42642264,0.00011838,2]
[360889125,1747108707575,170.7393119,0.00011799,2]
[360889126,1747108785532,7221.0,0.00028,120]
[360889127,1747109043017,150.0,0.00011361,2]
[360889137,1747109266219,16512.38863915,0.00011,5]
[360889138,1747109267597,1000.0,0.00011283,2]
[360889139,1747109272941,2179.83426546,0.00011,4]
[360889140,1747109272962,4000.0,0.00011,4]
[360889141,1747109272982,4000.0,0.00011,4]
[360889142,1747109273003,4000.0,0.00011,4]
[360889143,1747109273024,2332.55437369,0.00011,4]
[360889144,1747109279580,155.16,0.00011321,2]
[360889145,1747109279790,155.16,0.00011325,2]
[360889146,1747109279992,155.16,0.00011329,2]
[360889147,1747109280212,155.16,0.00011334,2]
[360889148,1747109280394,155.16,0.00011338,2]
[360889149,1747109280600,155.16,0.00011343,2]
[360889150,1747109280822,155.16,0.00011347,2]
[360889151,1747109281023,155.16,0.00011351,2]
[360889152,1747109281231,155.16,0.00011356,2]
[360889153,1747109281439,155.16,0.0001136,2]
[360889154,1747109281626,115.84562631,0.00011364,2]
[360889155,1747109281649,39.31437369,0.00011364,2]
[360889156,1747109281824,155.16,0.00011369,2]
[360889157,1747109282015,155.16,0.00011373,2]
[360889158,1747109282226,155.16,0.00011377,2]
[360889159,1747109282423,3495.20562631,0.00011,3]
[360889160,1747109282445,4000.0,0.00011,3]
[360889161,1747109282467,4000.0,0.00011,3]
[360889162,1747109282490,4000.0,0.00011,3]
[360889163,1747109282511,992.40573454,0.00011,3]
[360889168,1747109432194,-341.86589249,0.00011894,2]
[360889169,1747109432205,-200.0,0.00011895,2]
[360889170,1747109432216,-200.0,0.00011896,2]
[360889171,1747109432226,-1200.0,0.00011898,2]
[360889172,1747109432236,-300.0,0.00011899,2]
[360889173,1747109432245,-140.45966498,0.00011899,2]
[360889174,1747109432257,-159.54033502,0.00011899,2]
[360889175,1747109432266,-151.0,0.000119,2]
[360889176,1747109432276,-12.44426175,0.000119,2]
[360889177,1747109432291,-493.09180571,0.000119,2]
[360889178,1747109432301,-90.09367953,0.000119,2]
[360889179,1747109432313,-3123.67539251,0.000119,2]
[360889180,1747109432323,-153.39555357,0.000119,2]
[360889181,1747109432333,-160.0112549,0.000119,2]
[360889182,1747109432342,-420.68294969,0.000119,2]
[360889183,1747109432351,-185.50279461,0.000119,2]
[360889184,1747109432362,-4322.37042772,0.000119,2]
[360889185,1747109432373,-1218.45,0.000119,2]
[360889186,1747109432409,-544.02,0.000119,2]
[360889187,1747109432621,-894.45026493,0.000119,2]
[360889188,1747109432631,-386.0777737,0.000119,2]
[360889189,1747109432640,-250.0,0.00011918,2]
[360889190,1747109432650,-1243.536,0.00011941,2]
[360889191,1747109432660,-175.96,0.00011941,2]
[360889192,1747109432670,-150.0,0.00011972,2]
[360889193,1747109432679,-25723.0,0.00011973,2]
[360889194,1747109432689,-1186.0,0.00011973,2]
[360889195,1747109432699,-500.0,0.00011973,2]
[360889196,1747109432709,-500.0,0.00011973,2]
[360889197,1747109432719,-524.29936154,0.00011973,2]
[360889199,1747109432728,-500.0,0.00011973,2]
[360889201,1747109432738,-165.04582177,0.00011973,2]
[360889203,1747109432747,-500.59663006,0.00011973,2]
[360889205,1747109432757,-500.0,0.00011973,2]
[360889207,1747109432767,-500.0,0.00011973,2]
[360889208,1747109432777,-500.0,0.00011973,2]
[360889209,1747109432787,-500.0,0.00011973,2]
[360889210,1747109432796,-500.0,0.00011973,2]
[360889211,1747109432806,-310.57964211,0.00011973,2]
[360889212,1747109432816,-278.78410551,0.0001199,2]
[360889213,1747109432826,-7539.86654138,0.00011999,2]
[360889214,1747109432839,-5997.83142187,0.00011999,2]
[360889215,1747109432851,-411.8444199,0.00011999,2]
[360889218,1747109438104,-151.0,0.00011999,2]
[360889220,1747109438115,-404.42885397,0.00011999,2]
[360889222,1747109438125,-1718.98114599,0.00011999,2]
[360889223,1747109438136,-1536.52,0.00011999,2]
[360889224,1747109438159,-334.51208324,0.00011999,2]
[360889225,1747109438266,-5118.92315907,0.00011999,2]
[360889226,1747109438320,-422.74999925,0.00011999,2]
[360889227,1747109438334,-1013.88322961,0.00011999,2]
[360889228,1747109438347,-2705.76206552,0.00011999,2]
[360889229,1747109438376,-790.44402529,0.00011999,2]
[360889230,1747109438431,-4982.55408154,0.00011999,2]
[360889231,1747109438484,-478.736916,0.00011999,2]
[360889232,1747109438538,-316.73,0.00011999,2]
[360889235,1747109440601,-0.01839215,0.00011999,2]
[360889236,1747109440613,-257.4453914,0.00011999,2]
[360889237,1747109440622,-323.54308318,0.00011999,2]
[360889238,1747109440631,-138.90762326,0.00011999,2]
[360889418,1747109443233,-258.83446654,0.00011999,2]
[360889419,1747109443243,-101.34553346,0.00011999,2]
[360889420,1747109443255,-522.5,0.00011999,2]
[360889422,1747109443496,-3000.0,0.00011999,2]
[360889423,1747109443507,-5974.53,0.00011999,2]
[360889424,1747109443550,-942.51470743,0.00011999,2]
[360889464,1747109446173,-207.06757323,0.00011999,2]
[360889465,1747109446185,-2062.64600083,0.00011999,2]
[360889466,1747109446377,-606.44999924,0.00011999,2]
[360889467,1747109446390,-920.79729058,0.00011999,2]
[360889468,1747109446482,-779.81344171,0.00011999,2]
[360889469,1747109446495,-791.91003279,0.00011999,2]
[360889470,1747109446536,-1339.64996996,0.00011999,2]
[360889471,1747109446590,-6235.88930163,0.00011999,2]
[360889472,1747109446602,-263.258183,0.00011999,2]
[360889474,1747109461331,431.90963436,0.000118,2]
[360889475,1747109470967,657.0356607,0.00011604,2]
[360889476,1747109527653,-157.56917461,0.00011853,2]
[360889477,1747109542695,-31.40082539,0.00011853,2]
[360889478,1747109546694,278.51,9.8e-05,2]
[360889479,1747109559088,303.04,0.00011705,2]
[360889480,1747109613428,234.2424643,0.00011792,2]
[360889481,1747109619513,234.24246428,0.00011846,2]
[360889483,1747109703893,467.72,0.00011296,2]
[360889484,1747109747924,150.16,0.00011705,2]
[360889485,1747109865521,157.98,0.00011324,2]
[360889486,1747109879716,151.66845524,0.00014043,7]
[360889487,1747109895993,3007.210656,0.00011828,2]
[360889488,1747109908113,864.7519,0.0001179,2]
[360889489,1747109932871,431.90963436,0.000118,2]
[360889490,1747109938631,611.2794882,0.00011787,2]
[360889491,1747109954056,166.99,0.00011514,2]
[360889492,1747109958327,657.0356607,0.00011646,2]
[360889493,1747109958876,308.25536869,0.00011787,2]
[360889494,1747109964778,308.25536868,0.00011844,2]
[360889495,1747110088106,562.55,0.00015,7]
[360889496,1747110123005,222.83,0.00011,2]
[360889497,1747110167930,150.0,0.0001127,2]
[360889498,1747110197737,2112.33,0.00011243,2]
[360889499,1747110242820,-150.0,0.00011875,2]
[360889500,1747110263119,170.7393119,0.00011776,2]
[360889501,1747110274695,-184.63450475,0.00011875,2]
[360889502,1747110279698,-23.90488709,0.00011875,2]
[360889503,1747110279721,-276.09511291,0.00011875,2]
[360889504,1747110292854,-84.22471297,0.00011875,2]
[360889505,1747110292878,-190.17904869,0.00011875,2]
[360889506,1747110304397,177.75362238,0.00011775,2]
[360889507,1747110307770,-175.59623834,0.00011874,2]
[360889508,1747110330162,1068.7835,0.00011777,2]
[360889509,1747110349284,1000.0,0.00011156,2]
[360889510,1747110363175,364.09,0.00011156,2]
[360889511,1747110363395,364.09,0.00011159,2]
[360889512,1747110363603,364.09,0.00011162,2]
[360889513,1747110363797,364.09,0.00011165,2]
[360889514,1747110364281,364.09,0.00011168,2]
[360889515,1747110364493,364.09,0.00011171,2]
[360889516,1747110364700,364.09,0.00011174,2]
[360889517,1747110364900,364.09,0.00011177,2]
[360889518,1747110365099,364.09,0.0001118,2]
[360889519,1747110365280,364.09,0.00011183,2]
[360889520,1747110365469,364.09,0.00011186,2]
[360889521,1747110365663,235.02259193,0.00011189,2]
[360889522,1747110365689,129.06740807,0.00011189,2]
[360889523,1747110365875,364.09,0.00011191,2]
[360889524,1747110366067,364.09,0.00011194,2]
[360889525,1747110366280,364.09,0.00011197,2]
[360889526,1747110366484,364.09,0.000112,2]
[360889527,1747110366690,364.09,0.00011203,2]
[360889528,1747110366898,364.09,0.00011206,2]
[360889529,1747110367116,364.09,0.00011209,2]
[360889530,1747110367317,364.09,0.00011212,2]
[360889531,1747110402649,664.8,0.00011233,2]
[360889532,1747110411064,196.224446,0.00011814,2]
[360889573,1747110528524,4244.38,0.00011209,2]
[360889574,1747110548572,1000.0,0.00025,60]
[360889575,1747110563814,190.43,0.00011196,2]
[360889576,1747110590517,1027.22,0.00028,120]
[360889602,1747110631443,-1200.0,0.00011872,2]
[360889603,1747110631453,-28.92309174,0.00011872,2]
[360889604,1747110631465,-121.07690826,0.00011872,2]
[360889605,1747110631474,-200.0,0.00011873,2]
[360889606,1747110631484,-500.0,0.00011873,2]
[360889607,1747110631494,-180.30363672,0.00011873,2]
[360889608,1747110631504,-500.0,0.00011873,2]
[360889609,1747110631513,-500.0,0.00011873,2]
[360889610,1747110631523,-500.0,0.00011873,2]
[360889611,1747110631532,-500.0,0.00011873,2]
[360889612,1747110631542,-500.0,0.00011873,2]
[360889613,1747110631551,-500.0,0.00011873,2]
[360889614,1747110631560,-500.0,0.00011873,2]
[360889615,1747110631570,-500.0,0.00011873,2]
[360889616,1747110631579,-500.0,0.00011873,2]
[360889617,1747110631589,-500.0,0.00011873,2]
[360889618,1747110631598,-500.0,0.00011873,2]
[360889619,1747110631608,-313.8843204,0.00011873,2]
[360889620,1747110631617,-500.0,0.00011873,2]
[360889621,1747110631626,-500.0,0.00011873,2]
[360889622,1747110631637,-500.0,0.00011873,2]
[360889623,1747110631647,-500.0,0.00011873,2]
[360889624,1747110631656,-500.0,0.00011873,2]
[360889625,1747110631665,-500.0,0.00011873,2]
[360889626,1747110631675,-500.0,0.00011873,2]
[360889627,1747110631686,-500.0,0.00011873,2]
[360889628,1747110631696,-500.0,0.00011873,2]
[360889629,1747110631708,-500.0,0.00011873,2]
[360889630,1747110631718,-500.0,0.00011873,2]
[360889631,1747110631728,-500.0,0.00011873,2]
[360889632,1747110631737,-500.0,0.00011873,2]
[360889633,1747110631747,-492.17566525,0.00011878,2]
[360889634,1747110631757,-200.0,0.00011879,2]
[360889635,1747110631766,-250.0,0.00011892,2]
[360889636,1747110631775,-169.41035224,0.000119,2]
[360889637,1747110631784,-253.65493304,0.000119,2]
[360889638,1747110631794,-491.794184,0.000119,2]
[360889639,1747110632130,-307.34551195,0.000119,2]
[360889640,1747110632141,-361.41704813,0.000119,2]
[360889641,1747110632154,-2101.89383119,0.000119,2]
[360889642,1747110632180,-1068.3321,0.000119,2]
[360889643,1747110632191,-671.32894894,0.000119,2]
[360889644,1747110632200,-162.31494531,0.000119,2]
[360889645,1747110632210,-170.07895789,0.000119,2]
[360889646,1747110632219,-154.44609229,0.000119,2]
[360889647,1747110632229,-280.45529978,0.000119,2]
[360889648,1747110632239,-23.17575579,0.00011919,2]
[360889649,1747110632251,-2691.95424421,0.00011919,2]
[360889650,1747110632260,-210.46,0.00011919,2]
[360889651,1747110632270,-707.49,0.00011919,2]
[360889652,1747110632279,-167.294,0.0001195,2]
[360889653,1747110632289,-285.21877806,0.00011973,2]
[360889654,1747110632300,-214.78122194,0.00011973,2]
[360889655,1747110632309,-500.0,0.00011973,2]
[360889656,1747110632318,-500.0,0.00011973,2]
[360889657,1747110632328,-500.0,0.00011973,2]
[360889658,1747110632337,-21.43962001,0.00011973,2]
[360889659,1747110632348,-474.52058305,0.00011973,2]
[360889660,1747110632363,-4.03979694,0.00011973,2]
[360889661,1747110632374,-183.60331305,0.00011973,2]
[360889662,1747110632383,-500.0,0.00011973,2]
[360889663,1747110632393,-247.72514355,0.00011984,2]
[360889664,1747110632402,-295.81470499,0.00011989,2]
[360889665,1747110632414,-8.51472519,0.00011989,2]
[360889666,1747110632424,-171.1231244,0.0001199,2]
[360889667,1747110632434,-1000.0,0.0001199,2]
[360889668,1747110632444,-1011.0,0.0001199,2]
[360889669,1747110632453,-171.09142999,0.0001199,2]
[360889670,1747110632469,-370.04022624,0.0001199,2]
[360889671,1747110632480,-458.86834377,0.0001199,2]
[360889672,1747110632490,-1000.0,0.0001199,2]
[360889673,1747110632499,-0.83949329,0.0001199,2]
[360889674,1747110632511,-999.16050671,0.0001199,2]
[360889675,1747110632521,-800.83949329,0.0001199,2]
[360889676,1747110632570,-199.16050671,0.0001199,2]
[360889677,1747110632580,-1000.0,0.0001199,2]
[360889678,1747110632589,-169.77565008,0.0001199,2]
[360889679,1747110632600,-830.22434992,0.0001199,2]
[360889680,1747110632610,-1001.0,0.00011995,2]
[360889681,1747110632620,-761.94765178,0.00011999,2]
[360889682,1747110632633,-207.06757323,0.00011999,2]
[360889683,1747110632642,-284.83103766,0.00011999,2]
[360889684,1747110632653,-465.07443602,0.00012,2]
[360889685,1747110632666,-9455.45973701,0.00012,2]
[360889686,1747110632678,-9860.3378847,0.00012,2]
[360889687,1747110632689,-595.63987481,0.00012,2]
[360889688,1747110637299,-1214.92789561,0.00012,2]
[360889689,1747110637607,-48162.66126169,0.00012,2]
[360889690,1747110637619,-2353.37527564,0.00012,2]
[360889694,1747110637682,-869.75009134,0.00012,2]
[360889697,1747110637704,-956.91898967,0.00012,2]
[360889699,1747110637717,-16055.08711985,0.00012,2]
[360889708,1747110637776,-1036.01785492,0.00012,2]
[360889711,1747110637794,-68365.3898757,0.00012,2]
[360889713,1747110637805,-2915.56246757,0.00012,2]
[360889715,1747110637816,-1991.00482026,0.00012,2]
[360889716,1747110637828,-579.13054231,0.00012,2]
[360889718,1747110637839,-4059.62035122,0.00012,2]
[360889720,1747110637850,-995.96366091,0.00012,2]
[360889722,1747110637859,-658.6806351,0.00012,2]
[360889749,1747110639625,-2000.0,0.00012,2]
[360889750,1747110639637,-3599.85929846,0.00012,2]
[360889751,1747110639792,-10052.23852557,0.00012,2]
[360889762,1747110643102,-190.17944094,0.00011871,2]
[360889763,1747110643111,-252.22387811,0.00011871,2]
[360889764,1747110643121,-257.38518246,0.000119,2]
[360889765,1747110643131,-25331.52816852,0.00012,2]
[360889766,1747110643159,-1272.69811959,0.00012,2]
[360889767,1747110643273,-1007.0,0.00012,2]
[360889768,1747110643333,-28981.42942138,0.00012,2]
[360889784,1747110643849,177.75362237,0.00011773,2]
[360889787,1747110645436,-299.73565,0.000119,2]
[360889788,1747110645449,-4353.12481176,0.000119,2]
[360889789,1747110645459,-2716.57284114,0.00012,2]
[360889790,1747110645477,-27173.34977809,0.00012,2]
[360889792,1747110650182,-17359.61259947,0.00012,2]
[360889793,1747110650211,-24694.82899691,0.00012,2]
[360889794,1747110650223,-8420.25690152,0.00012,2]
[360889795,1747110716655,175.96,0.00011142,2]
[360889796,1747110761343,1604.059139,0.00011839,2]
[360889797,1747110804707,13944.67,0.00011197,2]
[360889798,1747110815589,1000.0,0.00011553,2]
[360889799,1747110926638,303.04,0.00011243,2]
[360889800,1747110932073,150.16,0.00011243,2]
[360889801,1747110946526,303.92,9.311e-05,2]
[360889802,1747110946900,303.92,0.00011574,2]
[360889808,1747110996308,1000.0,0.00011703,2]
[360889809,1747110996358,289.68013631,0.00011411,2]
[360889810,1747111037711,-176.55671468,0.00011897,2]
[360889811,1747111037739,-500.0,0.00011897,2]
[360889812,1747111037765,-500.0,0.00011897,2]
[360889813,1747111037792,-423.76492449,0.00011897,2]
[360889814,1747111037814,-1200.0,0.00011899,2]
[360889815,1747111037836,-300.0,0.00011899,2]
[360889816,1747111037862,-300.0,0.00011899,2]
[360889817,1747111037885,-171.79953327,0.000119,2]
[360889818,1747111037909,-165.431801,0.000119,2]
[360889819,1747111037931,-186.97019986,0.000119,2]
[360889820,1747111037954,-4501.90046178,0.000119,2]
[360889821,1747111037977,-200.0,0.00011919,2]
[360889822,1747111037999,-1000.0,0.00011958,2]
[360889823,1747111038022,-200.0,0.00011967,2]
[360889824,1747111038043,-1000.0,0.00011971,2]
[360889825,1747111038064,-500.0,0.00011973,2]
[360889826,1747111038088,-358.07943432,0.00011973,2]
[360889827,1747111038112,-288.17669469,0.00011973,2]
[360889828,1747111038135,-500.0,0.00011973,2]
[360889829,1747111038157,-500.0,0.00011973,2]
[360889830,1747111038179,-500.0,0.00011973,2]
[360889831,1747111038200,-150.0,0.00011979,2]
[360889832,1747111038222,-1000.0,0.00011998,2]
[360889833,1747111038245,-150.0,0.00011999,2]
[360889834,1747111038268,-227.32023591,0.00012,2]
[360889835,1747111096182,313.0,0.00028,120]
[360889836,1747111101667,200.0,0.00011473,2]
[360889837,1747111110119,1049.896,0.0001176,2]
[360889838,1747111127829,161.6,0.0001173,2]
[360889839,1747111175655,1000.0,0.0001129,2]
[360889840,1747111197006,467.72,0.00011706,2]
[360889841,1747111624178,167.5,0.00011443,2]
[360889842,1747111624352,167.5,0.00011471,2]
[360889843,1747111624742,167.5,0.000115,2]
[360889845,1747111629472,150.0,0.00011208,2]
[360889881,1747111662976,70579.0,0.00028,120]
[360889882,1747111665209,25752.08636889,0.000145,5]
[360889883,1747111665234,61892.48291549,0.000145,5]
[360889884,1747111726926,1000.0,0.00011211,2]
[360889900,1747111832048,-348.71,0.00011895,2]
[360889901,1747111832058,-200.0,0.00011896,2]
[360889902,1747111832068,-1200.0,0.00011899,2]
[360889903,1747111832077,-169.41035224,0.000119,2]
[360889904,1747111832087,-4051.71041553,0.000119,2]
[360889905,1747111832098,-165.43180098,0.000119,2]
[360889906,1747111832114,-184.32003427,0.000119,2]
[360889907,1747111832124,-186.97019985,0.000119,2]
[360889908,1747111832135,-200.0,0.00011915,2]
[360889909,1747111832145,-150.0,0.00011972,2]
[360889910,1747111832156,-500.0,0.00011973,2]
[360889911,1747111832167,-500.0,0.00011973,2]
[360889912,1747111832179,-500.0,0.00011973,2]
[360889913,1747111832190,-501.96524235,0.00011973,2]
[360889914,1747111832199,-500.0,0.00011973,2]
[360889915,1747111832209,-500.0,0.00011973,2]
[360889916,1747111832219,-500.0,0.00011973,2]
[360889917,1747111832230,-50175.8919999,0.00011995,2]
[360889918,1747111832239,-5853.1863141,0.00011995,2]
[360889919,1747111832250,-17046.8924671,0.00011995,2]
[360889920,1747111832260,-48264.8003333,0.00011995,2]
[360889921,1747111832270,-5560.21853047,0.00011995,2]
[360889922,1747111832281,-2316.77073365,0.00011995,2]
[360889923,1747111832311,-1320.39263827,0.00011995,2]
[360889928,1747111837528,-6129.88,0.00011995,2]
[360889929,1747111837625,-3466.020634,0.00011995,2]
[360889930,1747111837692,-1600.94212731,0.00011995,2]
[360889931,1747111837704,-5905.6559423,0.00011995,2]
[360889932,1747111837715,-3101.9069745,0.00011999,2]
[360889933,1747111837940,-380.97382589,0.00012,2]
[360889934,1747111837957,-4394.93554189,0.00012,2]
[360889935,1747111837972,-6691.53786202,0.00012,2]
[360889936,1747111837989,-10854.42280476,0.00012,2]
[360889938,1747111839666,-3103.46652569,0.00012,2]
[360889942,1747111842442,-0.0074998,0.00012,2]
[360889945,1747111843152,-1493.27209043,0.00012,2]
[360889946,1747111843164,-411.34104,0.00012,2]
[360889947,1747111843200,-4327.60833301,0.00012,2]
[360889948,1747111843211,-8261.93562539,0.00012,2]
[360889952,1747111843386,-3947.41154544,0.00012,2]
[360889954,1747111843398,-29917.12361948,0.00012,2]
[360889955,1747111843410,-12204.20251953,0.00012,2]
[360889956,1747111843419,-78369.33893993,0.00012,2]
[360889957,1747111843442,-2000.0,0.00012,2]
[360889958,1747111843838,500.0,0.000115,4]
[360889959,1747111844191,-2509.16923208,0.00012,2]
[360889960,1747111844204,-985.04258899,0.00012,2]
[360889961,1747111844219,-1951.11125458,0.00012,2]
[360889962,1747111844250,-1679.91962656,0.00012,2]
[360889963,1747111844288,-8299.83161575,0.00012,2]
[360889964,1747111844300,-275.0,0.00012,2]
[360889965,1747111844312,-126122.10260356,0.00012,2]
[360889966,1747111844555,1000.0,0.000116,4]
[360889967,1747111845576,1500.0,0.000117,4]
[360889968,1747111845606,-2691.19724658,0.00012,2]
[360889969,1747111845690,-629.87999998,0.00012,2]
[360889970,1747111845891,-1656.90474624,0.00012,2]
[360889975,1747111847550,2100.0,0.000118,4]
[360889976,1747111851794,500.0,0.000138,5]
[360889977,1747111853888,500.0,0.000139,5]
[360889978,1747111917998,198.39,0.00011742,2]
[360889979,1747111923009,1000.0,0.00028,120]
[360889980,1747111927333,707.9553269,0.00011585,2]
[360889981,1747111933276,1000.0,0.00028,120]
[360889982,1747111942397,1000.0,0.00028,120]
[360889983,1747111950265,1000.0,0.00028,120]
[360889984,1747111971729,1000.0,0.00028,120]
[360889985,1747111978982,1000.0,0.00028,120]
[360889986,1747111991382,2000.0,0.00028,120]
[360889987,1747112021587,818.55677418,0.0002,120]
[360889989,1747112056903,406.67770329,0.000118,2]
[360889990,1747112065869,297.98,9.534e-05,2]
[360889991,1747112066210,297.98,0.00011797,2]
[360889993,1747112241334,4636.04,0.0001142,2]
[360889994,1747112250812,150.0,0.00011184,2]
[360889995,1747112315379,1000.0,0.00010919,2]
[360889996,1747112375581,1000.0,0.0001117,2]
[360889997,1747112383910,1607.46,0.00011216,2]
[360889998,1747112408667,707.9553269,0.0001156,2]
[360889999,1747112466798,4570.29,0.00011187,2]
[360890000,1747112471965,920.81,0.00011187,2]
[360890001,1747112562774,505.60869657,0.00022,120]
[360890002,1747112733815,1168.46,0.00011269,2]
[360890013,1747112848301,174.35,0.00011274,2]
[360890015,1747112935898,175.96,0.00011326,2]
[360890016,1747112946974,1000.0,0.0001133,2]
[360890023,1747112977016,198.0,0.000117,2]
[360890027,1747113012161,198.0,0.000117,2]
[360890031,1747113031733,-658.35694167,0.00011878,2]
[360890032,1747113031745,-541.64305833,0.00011878,2]
[360890033,1747113031754,-300.0,0.00011878,2]
[360890034,1747113031763,-200.0,0.00011879,2]
[360890035,1747113031772,-500.0,0.00011879,2]
[360890036,1747113031782,-500.0,0.00011879,2]